Cogmind - Beta 13 @@@ ROGUE MODE // 2024.05.13 @ 12:06:28 Player: anthonyiye Result: Destroyed by as-17534 with Assembled Heavy Rifle Performance ------------- Evolutions (0) 0 Regions Visited (2) 400 Robots Destroyed (21) 105 Value Destroyed (352) 352 Prototype IDs (0) 0 Alien Tech Used (0) 0 Bonus (0) 0 TOTAL SCORE: 857 Bonus ------- None Cogmind --------- Core Integrity 0/250 Matter 252/300 Energy 100/100 System Corruption 0% Temperature Cool (0) Movement Core (1400) Ox27 Location -10/Mines Parts ------- > --- POWER (1) -------- (None) > --- PROPULSION (2) --- (None) > --- UTILITY (2) ------ Huge Storage Unit Structural Scanner > --- WEAPON (2) ------- Light Assault Rifle > --- INVENTORY (25) --- Light Ion Engine Light Treads Light Treads Light Treads Light Treads Aluminum Leg Aluminum Leg Compact Wheel High-capacity Storage Unit High-capacity Battery (250) Structural Scanner Sensor Array Signal Interpreter Transport Network Coupler Targeting Computer ECM Suite Hacking Suite Heavy Hammer Heavy Hammer Peak State ------------ > --- POWER ------------ Light Ion Engine > --- PROPULSION ------- Light Treads Light Treads > --- UTILITY ---------- Huge Storage Unit Structural Scanner > --- WEAPON ----------- Light Assault Rifle Light Assault Rifle > --- INVENTORY -------- Light Ion Engine Light Treads Light Treads Light Treads Light Treads Aluminum Leg Aluminum Leg Compact Wheel High-capacity Storage Unit High-capacity Battery Structural Scanner Sensor Array Signal Interpreter Transport Network Coupler Targeting Computer ECM Suite Light Assault Rifle Grenade Launcher Heavy Hammer [Rating: 9] Favorites ----------- Power Light Ion Engine Engine Light Ion Engine Propulsion Light Treads Treads Light Treads Utility Structural Scanner Device Structural Scanner Storage High-capacity Storage Unit Weapon Light Assault Rifle Ballistic Gun Light Assault Rifle Launcher Grenade Launcher Build | -11 -10 -10 ------- Run | Yrd Mat Min Slots Evolved . | . . . Power . | . . . Propulsion . | . . . Utility . | . . . Weapon . | . . . Parts Attached 20 | 6 11 3 Power 2 | 1 1 . Engine 2 | 1 1 . Core . | . . . Reactor . | . . . Propulsion 5 | 2 3 . Treads 5 | 2 3 . Leg . | . . . Wheel . | . . . Hover . | . . . Flight . | . . . Utility 7 | 1 6 . Device 2 | . 2 . Storage 5 | 1 4 . Processor . | . . . Hackware . | . . . Protection . | . . . Artifact . | . . . Weapon 6 | 2 1 3 Energy Gun . | . . . Energy Cannon . | . . . Ballistic Gun 5 | 2 1 2 Ballistic Cannon . | . . . Launcher 1 | . . 1 Special Weapon . | . . . Impact Weapon . | . . . Slashing Weapon . | . . . Piercing Weapon . | . . . Special Melee Weapon . | . . . Unidentified Prototypes . | . . . Parts Lost 7 | . 1 6 Power 2 | . 1 1 Propulsion 2 | . . 2 Utility . | . . . Weapon 3 | . . 3 Highest Loss Streak 6 | . 1 6 To Critical Strikes 1 | . . 1 Average Slot Usage (%) 98 | . 99 85 Engine 13 | . 13 7 Treads 27 | . 28 24 Device 13 | . 13 14 Storage 14 | . 14 14 Ballistic Gun 27 | . 28 17 Naked Turns . | . . . Heaviest Build 86 | 12 86 86 Greatest Support 40 | 40 40 40 Greatest Overweight (x) 27 | . 2 27 Average Overweight (x) . | . . 7 Largest Inventory Capacity 25 | 8 25 25 Average Capacity 17 | 7 18 25 Most Carried 21 | 6 21 21 Average Carried 13 | 4 13 20 Final Capacity 25 | 8 25 25 Final Carried 21 | 6 21 19 Class Distribution -------------------- 100% | Mutant Dominant Class ---------------- Mutant | -10/Materials Mutant | -10/Mines Resources | -11 -10 -10 ----------- Run | Yrd Mat Min Matter Collected 479 | 206 273 . Remotely . | . . . Salvage Created 529 | . 501 28 Parts 47 | . 47 . Haulers Intercepted 1 | . 1 . Recyclers Shooed 2 | . 2 . Parts Field Recycled . | . . . Retrieved Matter . | . . . Parts Self-Destructed . | . . . Prevented . | . . . Kills | -11 -10 -10 ------- Run | Yrd Mat Min Combat Hostiles Destroyed 25 | . 15 10 Melee 3 | . 3 . Guns 15 | . 12 3 AOE 7 | . . 7 Classes Destroyed 9 | . 8 1 Builder 1 | . 1 . Hauler 1 | . 1 . Recycler 1 | . 1 . Mechanic 1 | . 1 . Operator 1 | . 1 . Watcher 1 | . 1 . Swarmer 9 | . 9 . Grunt 6 | . 6 . Assembled 10 | . . 10 Best Kill Streak 10 | . 3 10 Combat Bots Only 10 | . 3 10 Max Kills in Single Turn 3 | . 1 3 Gunslinging . | . . . Exploded 3 | . . 3 Melee 1 | . 1 . Uniques/NPCs Destroyed . | . . . Combat | -11 -10 -10 -------- Run | Yrd Mat Min Hostile Shots Fired 153 | . 88 65 Missed 46 | . 19 27 Damage Taken 1208 | . 606 602 Core 251 | . 126 125 Absorbed by Shields . | . . . Core Remaining (%) 100 | 100 . . Volleys Fired 70 | . 63 7 Largest 2 | . 2 2 Hottest 50 | . 40 50 Shots Fired 138 | . 126 12 Gun 134 | . 126 8 Cannon . | . . . Launcher 4 | . . 4 Special . | . . . Kinetic 134 | . 126 8 Thermal . | . . . Explosive 4 | . . 4 Electromagnetic . | . . . Robot Hit Streak 12 | . 12 8 Robot Miss Streak 3 | . 3 3 Penetration Max . | . . . Secondary Targets 2 | . 2 . Max Gunslinging Chain 1 | . 1 . Shots Hit Robots 85 | . 76 9 Core Hits 58 | . 35 23 Critical Kills 2 | . 1 1 Critical Parts Destroyed . | . . . Critical Strikes 2 | . 1 1 Destroy 2 | . 1 1 Melee Attacks . | . . . Impact . | . . . Slashing . | . . . Piercing . | . . . Sneak Attacks . | . . . Combat Hostiles . | . . . Follow-up Attacks . | . . . Damage Inflicted 1128 | . 667 461 Guns 688 | . 634 54 Cannons . | . . . Explosions 407 | . . 407 Melee . | . . . Ramming 33 | . 33 . Kinetic 688 | . 634 54 Thermal . | . . . Explosive 407 | . . 407 Electromagnetic . | . . . Impact . | . . . Slashing . | . . . Piercing . | . . . Highest Corruption . | . . . Average Corruption . | . . . Corruption Purged . | . . . Corruption Blocked . | . . . Overload Shots . | . . . Overflow Damage 13 | . . 13 Projectiles . | . . . Explosions 13 | . . 13 Melee . | . . . Knockbacks . | . . . Impact . | . . . Kinetic . | . . . Secondary . | . . . Self-Inflicted Damage 42 | . . 42 Shots 2 | . . 2 Rammed 17 | . 17 . Targets Rammed 21 | . 21 . Kicked . | . . . Crushed 4 | . 4 . Highest Temperature 20 | . 12 20 Average Temperature 7 | . 5 10 Received Heat Transfer 164 | . 144 20 Siege Activations . | . . . Robots Corrupted . | . . . Combat Hostiles . | . . . Parts Fried . | . . . Impact Corruptions . | . . . Robots Melted . | . . . Combat Hostiles . | . . . Parts Melted . | . . . Heat Transferred . | . . . Parts Sabotaged . | . . . Parts Stolen . | . . . Parts Stripped . | . . . Power Chain Reactions . | . . . Alert | -11 -10 -10 ------- Run | Yrd Mat Min Peak Influence 352 | . 352 21 Initial . | . . . Average 116 | . 123 3 Maximum Alert Level 1 | . 1 . Low Security (%) 78 | 100 76 100 Level 1 21 | . 23 . Level 2 . | . . . Level 3 . | . . . Level 4 . | . . . Level 5 . | . . . High Security . | . . . Max Security . | . . . Squads Dispatched 2 | . 2 . Investigation . | . . . Extermination . | . . . Reinforcement 2 | . 2 . Assault . | . . . Garrison . | . . . Intercept . | . . . Searches Triggered . | . . . Construction Impeded . | . . . Haulers Reinforced . | . . . Active Scanning Responses . | . . . Cargo Convoy Interrupts . | . . . Stealth | -11 -10 -10 --------- Run | Yrd Mat Min Distress Signals 1 | . 1 . Communications Jammed . | . . . Distress Signals . | . . . Times Spotted 52 | . 35 17 Peak Tracking Total 17 | . 5 17 Tactical Retreats 1 | . 1 . Traps | -11 -10 -10 ------- Run | Yrd Mat Min Traps Triggered 1 | . 1 . Indirectly . | . . . Trap Hack Attempts . | . . . Triggered . | . . . Disarmed 4 | . 4 . Reprogrammed . | . . . Reused . | . . . Traps Extracted . | . . . Installed . | . . . Triggered . | . . . Machines | -11 -10 -10 ---------- Run | Yrd Mat Min Machines Disabled . | . . . Max in Single Turn . | . . . Machines Repaired . | . . . Machines Dismantled . | . . . Machines Sabotaged . | . . . Overloaded Fab Kills . | . . . Hacking | -11 -10 -10 --------- Run | Yrd Mat Min Machines Accessed 5 | . 5 . Terminals 5 | . 5 . Fabricators . | . . . Repair Stations . | . . . Recycling Units . | . . . Scanalyzers . | . . . Garrison Access . | . . . Total Hacks 20 | . 20 . Successful 11 | . 11 . Failed 9 | . 9 . Catastrophic . | . . . Database Lockouts . | . . . Manual . | . . . Terminals 20 | . 20 . Fabricators . | . . . Repair Stations . | . . . Recycling Units . | . . . Scanalyzers . | . . . Garrison Access . | . . . Terminal Hacks 11 | . 11 . Branch Access Points 1 | . 1 . Alert Level 2 | . 2 . Locate Traps 1 | . 1 . Disarm Traps 1 | . 1 . Transport Status 1 | . 1 . Hauler Manifests 3 | . 3 . Zone Layout 2 | . 2 . Fabricator Hacks . | . . . Repair Station Hacks . | . . . Recycling Unit Hacks . | . . . Scanalyzer . | . . . Garrison Access Hacks . | . . . Unauthorized Hacks . | . . . Terminals . | . . . Fabricators . | . . . Repair Stations . | . . . Recycling Units . | . . . Scanalyzers . | . . . Garrison Access . | . . . Data Cores Recovered . | . . . Used . | . . . Hacking Detections 4 | . 4 . Full Trace Events . | . . . Feedback Events . | . . . Feedback Blocked . | . . . Robot Schematics Acquired . | . . . Robots Built . | . . . Authchips . | . . . Time . | . . . Total Robot Build Rating . | . . . Part Schematics Acquired . | . . . Parts Built . | . . . Authchips . | . . . Time . | . . . Total Part Build Rating . | . . . Parts Repaired . | . . . Time . | . . . Parts Recycled . | . . . Recycled Matter . | . . . Retrieved Matter . | . . . Retrieved Components . | . . . Parts Scanalyzed . | . . . Part Schematics Acquired . | . . . Parts Damaged . | . . . Bothacking | -11 -10 -10 ------------ Run | Yrd Mat Min Used RIF Installer . | . . . Robots Hacked . | . . . Non-combat . | . . . Combat . | . . . Robot Hacks Applied . | . . . Relay Couplers Released . | . . . Fabnet Peak Effective % . | . . . Robots Rewired . | . . . Allies Hacked . | . . . Hacks Repelled . | . . . Allies | -11 -10 -10 -------- Run | Yrd Mat Min Total Allies . | . . . Largest Group . | . . . Highest-Rated Group . | . . . Highest-Rated Ally . | . . . Total Orders . | . . . Ally Attacks . | . . . Total Damage . | . . . Kills . | . . . Allies Corrupted . | . . . Allies Melted . | . . . Intel | -11 -10 -10 ------- Run | Yrd Mat Min Robot Analysis Total . | . . . Derelict Logs Recovered . | . . . Drone Launches . | . . . Drone Recoveries . | . . . Exploration | -11 -10 -10 ------------- Run | Yrd Mat Min Turns Passed 1836 | 78 1719 39 Spaces Moved 703 | 42 656 5 Core 4 | 3 . 1 Treads 699 | 39 656 4 Legs . | . . . Wheels . | . . . Hover . | . . . Flight . | . . . Fastest Speed 50 | 50 160 320 Average Speed 224 | 152 226 536 Slowest Speed 1400 | 160 320 1400 Overloaded Moves . | . . . Propulsion Burnouts . | . . . Robots Hopped . | . . . Cave-ins Triggered . | . . . Exploration Rate (%) 32 | 3 86 7 Regions Visited 2 Branch Regions 1 Pre-discovered Areas . | . . . Known Exits Taken 1 | . 1 . Unknown Exits Taken 1 | 1 . . Scrap Searched . | . . . Spaces Dug . | . . . Terrain Destroyed 29 | . . 29 Melee . | . . . Projectile . | . . . AOE 29 | . . 29 Terrain Rammed . | . . . Walls Destroyed . | . . . Machines Disabled . | . . . Actions | -11 -10 -10 --------- Run | Yrd Mat Min Total 841 | 53 773 15 Wait 5 | . 5 . Move 701 | 41 655 5 Hop . | . . . Pick Up 19 | 6 13 . Fast Attach 8 | 6 2 . Attach 3 | . 1 2 Detach . | . . . Swap 9 | . 8 1 Drop 5 | . 5 . Fire 70 | . 63 7 Melee . | . . . Ram . | . . . Kick . | . . . Crush 21 | . 21 . Escape Stasis . | . . . Rewire . | . . . Trap . | . . . Miscellaneous . | . . . Route ------- -11/Scrapyard -10/Materials (discovered 4 exits: [*Mat x2] / *Min x2) -10/Mines History --------- Turn | Location | Event 55 | -11/Scrapyard | Discovered new exit (range 12) 79 | -11/Scrapyard | Entered Materials 305 | -10/Materials | Build established: Mutant 621 | -10/Materials | Discovered new exit (range 7) 941 | -10/Materials | Discovered new exit (range 16) 973 | -10/Materials | Identified exit to Mines 1269 | -10/Materials | Discovered new exit (range 16) 1383 | -10/Materials | Core integrity fell below 50% 1798 | -10/Materials | Entered Mines 1799 | -10/Mines | Assembled infested the area 1833 | -10/Mines | Core integrity fell below 20% 1837 | -10/Mines | Destroyed by as-17534 with Assembled Heavy Rifle Last Messages --------------- 01818_ as-41334 destroyed. 01818_ Lgt. Ion Engine destroyed. 01818_ Destroyed Lgt. Ion Engine. 01818_ Destroyed Asb. Hover Unit. 01818_ as-48926 destroyed. 01821_ Grenade Launcher destroyed. 01824_ Lgt. Treads destroyed. 01825_ as-68699 suffers critical hit (Destroy). 01825_ as-68699 destroyed. 01828_ The unstable cave ceiling collapses. 01830_ Critical hit (Destroy). 01830_ Lgt. Treads destroyed. 01830_ Lgt. Assault Rifle destroyed. 01830_ as-05051 destroyed. 01831_ The unstable cave ceiling collapses. 01831_ U-05 Engineer lays Concrete. 01832_ C-30 ARC bursts open, deploying its payload. 01832_ D-53 Grenadier unfolds itself. 01833_ U-05 Engineer lays Concrete. Map ----- +----------------------------------------------------+ | ?????????????????????????????????????????????????? | | ?????????????????????????????????????????????????? | | ?????????????????????????????????????????????????? | | ?????????????????????????????????????????????????? | | ?????????????????????????????????????????????????? | | ?????????????????????????????????????????????????? | | ?????????????????????????????????????????????????? | | ?????????????????????????????????????????????????? | | ?????????????????????????????????????????????????? | | ?????????????????????????????????????????????????? | | ?????????????????????????????????????????????????? | | ????????????????????? ?????????????????????????? | | ????????????????????# ?????????????????????????? | | ????????????????????## ???????????????????????? | | ???????????????????### a# ???????????????????????? | | ???????????????????###aa #???????????????????????? | | ?????????????????#### % ###?????????????????????? | | ?????????????????#### a #######?????????????????? | | ?????????????????## ######?????????????????? | | ??????????????## # #?????????????????? | | ??????????????## ?## ???????????????????? | | ????????????#### #####aa ????????????????????? | | ???????????##### ### % ???????????????????? | | ???????????### ### ## ???????????????????? | | ???????????## d ##???????????????????? | | ???????????## @ ##???????????????????? | | ???????????### d ##???????????????????? | | ????????????####### * ##???????????????????? | | ????????????######## ###???????????????????? | | ?????????????????### u ##???????????????????? | | ??????????????????### #####???????????????????? | | ??????????????????##### ##### ???????????????????? | | ???????????????????####%###??????????????????????? | | ?????????????????????## ##???????????????????????? | | ????????????????????? # ???????????????????????? | | ?????????????????????#### ???????????????????????? | | ?????????????????????#####???????????????????????? | | ?????????????????????????????????????????????????? | | ?????????????????????????????????????????????????? | | ?????????????????????????????????????????????????? | | ?????????????????????????????????????????????????? | | ?????????????????????????????????????????????????? | | ?????????????????????????????????????????????????? | | ?????????????????????????????????????????????????? | | ?????????????????????????????????????????????????? | | ?????????????????????????????????????????????????? | | ?????????????????????????????????????????????????? | | ?????????????????????????????????????????????????? | | ?????????????????????????????????????????????????? | | ?????????????????????????????????????????????????? | +----------------------------------------------------+ Best States ------------- Heat Dissipation 25 Energy Generation 10 Energy Capacity 250 Matter Stores 300 Matter Capacity 300 Sight Range 16 Terrain Scan Density 10 Evasion (%) 40 Recoil Reduction 2 Item Schematics ----------------- None Robot Schematics ------------------ None Fabricated ------------ Nothing Alien Tech Used ----------------- None Achievements -------------- None Challenges ------------ None Game ------ Seed PhaseGodPod Manual? 0 Play Time 00:13:51 Cumulative 23.9 hours Start 2024.05.13 @ 11:53:35 End 2024.05.13 @ 12:06:28 Sessions 1 Manual Loads 0 Difficulty Rogue Special Mode None Game No. 19 Rogue 19 Adventurer 0 Explorer 0 Win Type - Total 1 Types 1/0/0/0/0/0/0/0/0 Lore% 18 Gallery% 23 Achievement% 25 Wizard Run 0 Options --------- Layout 1 ASCII 0 Keyboard 1 Movement Arrows Keybinds 0 Fullscreen 1 Font 32/SmallcapsGlow Map View 50x35 Zoom Use 0% Tactical HUD 1 Map Filters NONE Filters NONE Steam 0 RUN: bf243e10-352c-4339-a63e-7a667018e26b